bitfinex-derivatives/quotes_BTCF0:USTF0_20250608
["timestamp","ask_amount","ask_price","bid_price","bid_amount"]
[1749340800939,0.09374177,105610.0,105600.0,0.12333758]
[1749340801839,0.09374177,105610.0,105600.0,0.15523758]
[1749340803846,0.42497507,105610.0,105600.0,0.34452478]
[1749340809547,0.42497507,105610.0,105600.0,0.37452478]
[1749340810743,0.42497507,105610.0,105600.0,0.40592478]
[1749340811846,0.39427507,105610.0,105600.0,0.40592478]
[1749340814145,0.39427507,105610.0,105600.0,0.43612478]
[1749340824051,0.33137507,105610.0,105600.0,0.43612478]
[1749340831860,0.42137507,105610.0,105600.0,0.43612478]
[1749340832065,0.33137507,105610.0,105600.0,0.43612478]
[1749340832752,0.43137507,105610.0,105600.0,0.43612478]
[1749340832953,0.33137507,105610.0,105600.0,0.43612478]
[1749340837269,0.43137507,105610.0,105600.0,0.43612478]
[1749340837471,0.33137507,105610.0,105600.0,0.43612478]
[1749340837871,0.55137507,105610.0,105600.0,0.37452478]
[1749340838072,0.55137507,105610.0,105600.0,0.34262478]
[1749340838073,0.64547507,105610.0,105600.0,0.34262478]
[1749340838267,0.67547507,105610.0,105600.0,0.34262478]
[1749340838873,0.52547507,105610.0,105600.0,0.37352478]
[1749340839062,0.42547507,105610.0,105600.0,0.37352478]
[1749340840074,0.39447507,105610.0,105600.0,0.37352478]
[1749340840274,0.39447507,105610.0,105600.0,0.40602478]
[1749340847587,0.39447507,105610.0,105600.0,0.43792478]
[1749340855289,0.36287507,105610.0,105600.0,0.43792478]
[1749340860495,0.46287507,105610.0,105600.0,0.43792478]
[1749340860691,0.36287507,105610.0,105600.0,0.43792478]
[1749340861694,0.46287507,105610.0,105600.0,0.34394837]
[1749340861900,0.62527507,105610.0,105600.0,0.34394837]
[1749340862096,0.39527507,105610.0,105600.0,0.34394837]
[1749340862600,0.47527507,105610.0,105600.0,0.34394837]
[1749340864400,0.47527507,105610.0,105600.0,0.37424837]
[1749340867505,0.47527507,105610.0,105600.0,0.40382478]
[1749340870806,0.39527507,105610.0,105600.0,0.69382478]
[1749340871916,0.39527507,105610.0,105600.0,0.72672478]
[1749340873709,0.75607507,105610.0,105600.0,0.72672478]
[1749340875310,0.39527507,105610.0,105600.0,0.72672478]
[1749340876613,0.75607507,105610.0,105600.0,0.72672478]
[1749340877614,0.42484177,105610.0,105600.0,0.72672478]
[1749340882315,0.06404177,105610.0,105600.0,0.72672478]
[1749340882617,0.42484177,105610.0,105600.0,0.72672478]
[1749340882918,0.06404177,105610.0,105600.0,0.72672478]
[1749340883122,0.42484177,105610.0,105600.0,0.72672478]
[1749340884022,0.42484177,105610.0,105600.0,0.8290113]
[1749340884322,0.42484177,105610.0,105600.0,0.74025873]
[1749340884518,0.42484177,105610.0,105600.0,0.75445873]
[1749340884922,0.42484177,105610.0,105600.0,0.84320807]
[1749340885621,0.42484177,105610.0,105600.0,0.75444646]
[1749340886122,0.42484177,105610.0,105600.0,0.74092478]
[1749340886620,0.42484177,105610.0,105600.0,0.84319249]
[1749340886921,0.42484177,105610.0,105600.0,0.8431946]
[1749340887123,0.42484177,105610.0,105600.0,0.84319482]
[1749340887323,0.42484177,105610.0,105600.0,0.84319211]
[1749340887624,0.39244177,105610.0,105600.0,0.7544451]
[1749340887823,0.39244177,105610.0,105600.0,0.74092478]
[1749340888024,0.39244177,105610.0,105600.0,0.75444355]
[1749340888823,0.39244177,105610.0,105600.0,0.84318845]
[1749340889020,0.39244177,105610.0,105600.0,0.74092478]
[1749340889224,0.39244177,105610.0,105600.0,0.75443755]
[1749340889519,0.39244177,105610.0,105600.0,0.74092478]
[1749340889920,0.39244177,105610.0,105600.0,0.75443934]
[1749340890528,0.39244177,105610.0,105600.0,0.75443887]
[1749340890721,0.39244177,105610.0,105600.0,0.74092478]
[1749340890925,0.39244177,105610.0,105600.0,0.82966938]
[1749340891119,0.39244177,105610.0,105600.0,0.84316967]
[1749340891531,0.39244177,105610.0,105600.0,0.82966938]
[1749340891722,0.39244177,105610.0,105600.0,0.75444024]
[1749340892630,0.39244177,105610.0,105600.0,0.75443491]
[1749340893128,0.39244177,105610.0,105600.0,0.75443411]
[1749340894427,0.39244177,105610.0,105600.0,0.74092478]
[1749340894928,0.39244177,105610.0,105600.0,0.75443074]
[1749340895127,0.39244177,105610.0,105600.0,0.74092478]
[1749340895429,0.39244177,105610.0,105600.0,0.75443081]
[1749340896123,0.39244177,105610.0,105600.0,0.7544317]
[1749340896332,0.39244177,105610.0,105600.0,0.75442882]
[1749340896529,0.39244177,105610.0,105600.0,0.75442475]
[1749340896724,0.39244177,105610.0,105600.0,0.75442191]
[1749340896930,0.39244177,105610.0,105600.0,0.74092478]
[1749340897133,0.39244177,105610.0,105600.0,0.75442081]
[1749340898038,0.39244177,105610.0,105600.0,0.74092478]
[1749340898231,0.39244177,105610.0,105600.0,0.75443142]
[1749340898426,0.39244177,105610.0,105600.0,0.75443217]
[1749340898736,0.39244177,105610.0,105600.0,0.74092478]
[1749340898928,0.36094177,105610.0,105600.0,0.75443215]
[1749340899839,0.36094177,105610.0,105600.0,0.75442597]
[1749340900127,0.36094177,105610.0,105600.0,0.75442593]
[1749340900335,0.36094177,105610.0,105600.0,0.75442314]
[1749340900536,0.36094177,105610.0,105600.0,0.75442358]
[1749340901637,0.36094177,105610.0,105600.0,0.75442182]
[1749340901936,0.36094177,105610.0,105600.0,0.74092478]
[1749340902323,0.36094177,105610.0,105600.0,0.75442172]
[1749340902931,0.36094177,105610.0,105600.0,0.75441541]
[1749340903331,0.36094177,105610.0,105600.0,0.74092478]
[1749340903827,0.36094177,105610.0,105600.0,0.75441946]
[1749340904034,0.36094177,105610.0,105600.0,0.74092478]
[1749340904636,0.36094177,105610.0,105600.0,0.75441511]
[1749340905240,0.36094177,105610.0,105600.0,0.75441582]
[1749340905635,0.36094177,105610.0,105600.0,0.75441636]
[1749340906741,0.36094177,105610.0,105600.0,0.7544174]
[1749340907041,0.00014177,105610.0,105600.0,0.7544174]
[1749340907241,0.36094177,105610.0,105600.0,0.7544179]
[1749340907538,0.36094177,105610.0,105600.0,0.75441784]
[1749340908041,0.36094177,105610.0,105600.0,0.75441653]
[1749340908542,0.36094177,105610.0,105600.0,0.75441652]
[1749340909041,0.36094177,105610.0,105600.0,0.63607894]
[1749340909234,0.36094177,105610.0,105600.0,0.63607899]
[1749340909435,0.36094177,105610.0,105600.0,0.6225872]
[1749340909634,0.00014177,105610.0,105600.0,0.63607911]
[1749340909835,0.36094177,105610.0,105600.0,0.63607911]
[1749340910233,0.36094177,105610.0,105600.0,0.72484118]
[1749340910636,0.00014177,105610.0,105600.0,0.72484118]
[1749340910837,0.36094177,105610.0,105600.0,0.6360812]
[1749340911340,0.36094177,105610.0,105600.0,0.63608146]
[1749340911541,0.36094177,105610.0,105600.0,0.63608216]
[1749340912339,0.36094177,105610.0,105600.0,0.63608221]
[1749340912841,0.36094177,105610.0,105600.0,0.63608234]
[1749340913141,0.36094177,105610.0,105600.0,0.6225872]
[1749340913333,0.36094177,105610.0,105600.0,0.72484553]
[1749340914538,0.36094177,105610.0,105600.0,0.72484741]
[1749340914747,0.36094177,105610.0,105600.0,0.71135115]
[1749340915244,0.36094177,105610.0,105600.0,0.72484638]
[1749340916442,0.36094177,105610.0,105600.0,0.72484739]
[1749340916744,0.36094177,105610.0,105600.0,0.72484708]
[1749340916937,0.36094177,105610.0,105600.0,0.75442071]
[1749340917941,0.36094177,105610.0,105600.0,0.75443212]
[1749340918146,0.36094177,105610.0,105600.0,0.74092478]
[1749340928052,0.00014177,105610.0,105600.0,0.74092478]
[1749340928257,0.36094177,105610.0,105600.0,0.74092478]
[1749340929949,0.55021107,105610.0,105600.0,0.74092478]
[1749340937653,0.55021107,105610.0,105600.0,0.71135251]
[1749340937952,0.18941107,105610.0,105600.0,0.71135251]
[1749340938158,0.55021107,105610.0,105600.0,0.71135251]
[1749340939961,0.55021107,105610.0,105600.0,0.64815251]
[1749340940164,0.61151107,105610.0,105600.0,0.64815251]
[1749340940661,1.04131107,105610.0,105600.0,0.61725251]
[1749340940864,1.16289407,105610.0,105600.0,0.58766986]
[1749340941054,1.16289407,105610.0,105600.0,0.5284872]
[1749340941247,0.73309407,105610.0,105600.0,0.5284872]
[1749340941452,0.73309407,105610.0,105600.0,0.58766986]
[1749340941764,0.73309407,105610.0,105600.0,0.5284872]
[1749340943262,0.64461107,105610.0,105600.0,0.5284872]
[1749340943950,0.73309407,105610.0,105600.0,0.5284873]
[1749340944155,0.64461107,105610.0,105600.0,0.5284873]
[1749340949367,0.28381107,105610.0,105600.0,0.5284873]
[1749340949572,1.00541107,105610.0,105600.0,0.5284873]
[1749340950672,1.00541107,105610.0,105600.0,0.3392]
[1749340951373,1.11541107,105610.0,105600.0,0.3392]
[1749340951578,1.00541107,105610.0,105600.0,0.3392]
[1749340951966,1.00541107,105610.0,105600.0,0.5284873]
[1749340952170,1.00541107,105610.0,105600.0,0.5284872]
[1749340952989,1.00541107,105610.0,105600.0,0.3392]
[1749340953171,1.00541107,105610.0,105600.0,0.5284872]
[1749340953371,1.00541107,105610.0,105600.0,0.3392]
[1749340954079,1.69479507,105610.0,105600.0,0.3392]
[1749340954279,1.53327807,105610.0,105600.0,0.3392]
[1749340960179,1.53327807,105610.0,105600.0,0.1492]
[1749340966489,0.1893052,105590.0,105580.0,0.05932443]
[1749340966682,1.46178137,105590.0,105580.0,0.51206487]
[1749340966884,1.46178137,105590.0,105580.0,0.54246487]
[1749340967792,1.02974137,105590.0,105580.0,0.54746487]
[1749340968390,1.02974137,105590.0,105580.0,0.55246487]
[1749340968782,1.03920781,105590.0,105580.0,0.55246487]
[1749340969383,1.03920781,105590.0,105580.0,0.61164753]
[1749340972891,0.74990261,105590.0,105580.0,0.61164753]
[1749340973097,0.84990261,105590.0,105580.0,0.61164753]
[1749340973994,1.03920781,105590.0,105580.0,0.61164753]
[1749340974191,0.84990261,105590.0,105580.0,0.61164753]
[1749340974388,1.03920781,105590.0,105580.0,0.61164753]
[1749340974695,0.84990261,105590.0,105580.0,0.61164753]
[1749340974890,1.03920781,105590.0,105580.0,0.61164753]
[1749340975594,0.84990261,105590.0,105580.0,0.61164753]
[1749340975797,1.03920781,105590.0,105580.0,0.61164753]
[1749340980593,0.31760781,105590.0,105580.0,0.61164753]
[1749340980792,0.67840781,105590.0,105580.0,0.61164753]
[1749340982492,0.57840781,105590.0,105580.0,0.61164753]
[1749340982695,0.67840781,105590.0,105580.0,0.61164753]
[1749340987598,0.67840781,105590.0,105580.0,0.70041284]
[1749340988304,0.67840781,105590.0,105580.0,0.61164753]
[1749340988504,0.67840781,105590.0,105580.0,0.70041284]
[1749340990002,0.76840781,105590.0,105580.0,0.36052443]
[1749340990209,0.94019081,105590.0,105580.0,0.27014177]
[1749340990706,0.86019081,105590.0,105580.0,0.27014177]
[1749340990901,0.92019081,105590.0,105580.0,0.27014177]
[1749340991102,0.86019081,105590.0,105580.0,0.27014177]
[1749340991606,1.10019081,105590.0,105580.0,0.27014177]
[1749340992618,1.00019081,105590.0,105580.0,0.45946487]
[1749340992908,1.53203081,105590.0,105580.0,0.45946487]
[1749340993095,1.53203081,105590.0,105580.0,0.49166487]
[1749340993503,1.06971081,105590.0,105580.0,0.49166487]
[1749340993704,1.50183081,105590.0,105580.0,0.52266487]
[1749340994007,1.50203081,105590.0,105580.0,0.52266487]
[1749340994408,1.50203081,105590.0,105580.0,0.52690487]
[1749340995802,1.50203081,105590.0,105580.0,0.33758177]
[1749340996405,1.50203081,105590.0,105580.0,0.30658177]
[1749340996607,1.53333081,105590.0,105580.0,0.30658177]
[1749340997307,1.53333081,105590.0,105580.0,0.27438177]
[1749341013828,1.29333081,105590.0,105580.0,0.27438177]
[1749341014429,1.29333081,105590.0,105580.0,0.30648177]
[1749341016725,0.66709081,105590.0,105580.0,0.30648177]
[1749341016931,1.19877081,105590.0,105580.0,0.33948177]
[1749341017230,1.19877081,105590.0,105580.0,0.37048177]
[1749341017728,1.19897081,105590.0,105580.0,0.37048177]
[1749341023533,1.19869081,105590.0,105580.0,0.37048177]
[1749341024326,0.83789081,105590.0,105580.0,0.37048177]
[1749341024528,1.55949081,105590.0,105580.0,0.37048177]
[1749341028538,1.55945081,105590.0,105580.0,0.37048177]
[1749341030431,0.83785081,105590.0,105580.0,0.37048177]
[1749341030631,1.55945081,105590.0,105580.0,0.37048177]
[1749341034439,1.55945081,105590.0,105580.0,0.41485224]
[1749341035438,1.55945081,105590.0,105580.0,0.35085224]
[1749341035739,1.62215081,105590.0,105580.0,0.35085224]
[1749341036539,1.62215081,105590.0,105580.0,0.33968177]
[1749341041937,1.87215081,105590.0,105580.0,0.33968177]
[1749341043242,1.87215081,105590.0,105580.0,0.37188177]
[1749341044735,1.34059081,105590.0,105580.0,0.37188177]
[1749341044933,1.37777081,105590.0,105580.0,0.56120477]
[1749341045137,1.80925081,105590.0,105580.0,0.56120477]
[1749341045339,1.72056781,105590.0,105580.0,0.62038743]
[1749341045540,1.72076781,105590.0,105580.0,0.62038743]
[1749341045947,1.80925081,105590.0,105580.0,0.62038743]
[1749341046143,1.72076781,105590.0,105580.0,0.62038743]
[1749341047239,1.72084781,105590.0,105580.0,0.62038743]
[1749341052948,1.80933081,105590.0,105580.0,0.62038743]
[1749341054749,1.80877081,105590.0,105580.0,0.62038743]
[1749341055253,1.72028781,105590.0,105580.0,0.62038743]
[1749341056151,1.72028781,105590.0,105580.0,0.43106443]
[1749341056342,1.72028781,105590.0,105580.0,0.62038733]
[1749341056538,1.72028781,105590.0,105580.0,0.43106443]
[1749341056845,1.80877081,105590.0,105580.0,0.43106443]
[1749341058853,1.80877081,105590.0,105580.0,0.62038913]
[1749341059054,1.72028781,105590.0,105580.0,0.43106443]
[1749341059855,1.18940781,105590.0,105580.0,0.43106443]
[1749341060252,1.72004781,105590.0,105580.0,0.43106443]
[1749341060554,1.72004781,105590.0,105580.0,0.62038733]
[1749341061652,1.72004781,105590.0,105580.0,0.43106443]
[1749341062055,1.80853081,105590.0,105580.0,0.43106443]
[1749341062258,1.80853081,105590.0,105580.0,0.62038743]
[1749341063058,1.80849081,105590.0,105580.0,0.62038743]
[1749341063656,1.80849081,105590.0,105580.0,0.43106443]
[1749341063955,1.80849081,105590.0,105580.0,0.62038743]
[1749341064155,1.80849081,105590.0,105580.0,0.43106443]
[1749341065055,1.72000781,105590.0,105580.0,0.43106443]
[1749341065457,1.72000781,105590.0,105580.0,0.62038743]
[1749341066558,1.80849081,105590.0,105580.0,0.43106443]
[1749341066758,1.72000781,105590.0,105580.0,0.43106443]
[1749341067060,1.80849081,105590.0,105580.0,0.43106443]
[1749341069558,1.80849081,105590.0,105580.0,0.62038743]
[1749341069951,1.55849081,105590.0,105580.0,0.62038743]
[1749341070158,1.55849081,105590.0,105580.0,0.43106443]
[1749341070862,1.55849081,105590.0,105580.0,0.62038733]
[1749341072757,1.19769081,105590.0,105580.0,0.62038733]
[1749341073462,1.19769081,105590.0,105580.0,0.43106443]
[1749341073961,1.19769081,105590.0,105580.0,0.62038743]
[1749341074464,0.66709081,105590.0,105580.0,0.62038743]
[1749341074651,1.19729081,105590.0,105580.0,0.62038743]
[1749341074855,0.83649081,105590.0,105580.0,0.62038743]
[1749341075058,1.22949081,105590.0,105580.0,0.62038743]
[1749341076658,1.14100781,105590.0,105580.0,0.66478003]
[1749341077464,1.14080781,105590.0,105580.0,0.66478003]
[1749341078565,0.71024781,105590.0,105580.0,0.66478003]
[1749341079265,0.34944781,105590.0,105580.0,0.66478003]
[1749341079464,0.71024781,105590.0,105580.0,0.66478003]
[1749341081164,0.71024781,105590.0,105580.0,0.47545703]
[1749341081366,0.74274781,105590.0,105580.0,0.66478003]
[1749341082066,0.74274781,105590.0,105580.0,0.47545703]
[1749341083560,0.83123081,105590.0,105580.0,0.47545703]
[1749341085157,0.83123081,105590.0,105580.0,0.66477993]
[1749341085461,0.83123081,105590.0,105580.0,0.47545703]
[1749341086767,0.83123081,105590.0,105580.0,0.66478003]
[1749341087169,0.47043081,105590.0,105580.0,0.66478003]
[1749341087369,0.83123081,105590.0,105580.0,0.66478003]
[1749341088860,0.83117481,105590.0,105580.0,0.66478003]
[1749341089968,0.83117481,105590.0,105580.0,0.47545703]
[1749341091074,0.83117481,105590.0,105580.0,0.66477993]
[1749341092168,0.83117481,105590.0,105580.0,0.47545703]
[1749341092373,0.83117481,105590.0,105580.0,0.66478173]
[1749341092974,0.83117481,105590.0,105580.0,0.47545703]
[1749341093476,0.83117481,105590.0,105580.0,0.44325703]
[1749341094069,0.83117481,105590.0,105580.0,0.63257993]
[1749341094776,0.83117481,105590.0,105580.0,0.44325703]
[1749341095676,0.83117481,105590.0,105580.0,0.41005703]
[1749341095878,0.86357481,105590.0,105580.0,0.41005703]
[1749341108799,0.83117481,105590.0,105580.0,0.59937993]
[1749341108998,0.83117481,105590.0,105580.0,0.63187993]
[1749341110499,0.83117481,105590.0,105580.0,0.44255703]
[1749341111101,0.83117481,105590.0,105580.0,0.63187993]
[1749341111701,0.83117481,105590.0,105580.0,0.66477993]
[1749341113002,0.83117481,105590.0,105580.0,0.47545703]
[1749341113896,0.83117481,105590.0,105580.0,0.66478173]
[1749341116704,0.02824661,105590.0,105580.0,0.98118913]
[1749341116899,0.11886017,105590.0,105580.0,1.01077178]
[1749341117105,0.11886017,105590.0,105580.0,1.04034405]
[1749341117403,0.01898017,105590.0,105580.0,1.47250405]
[1749341117603,0.0002,105590.0,105580.0,1.47250405]
[1749341117803,0.7216471,105600.0,105590.0,0.2839408]
[1749341118103,0.7216471,105600.0,105590.0,0.86740298]
[1749341118304,0.7218471,105600.0,105590.0,0.86740298]
[1749341118504,0.2895671,105600.0,105590.0,0.86740298]
[1749341118706,0.29917873,105600.0,105590.0,0.86740298]
[1749341119108,0.29917873,105600.0,105590.0,0.87140298]
[1749341119899,0.29917873,105600.0,105590.0,0.87540298]
[1749341120301,0.29917873,105600.0,105590.0,0.83101265]
[1749341121104,0.19909873,105600.0,105590.0,0.83101265]
[1749341121603,0.29917873,105600.0,105590.0,0.83562265]
[1749341124013,0.10989163,105600.0,105590.0,0.83562265]
[1749341124210,0.10989163,105600.0,105590.0,0.85299899]
[1749341124519,0.29897873,105600.0,105590.0,0.85299899]
[1749341124712,0.10989163,105600.0,105590.0,0.80867201]
[1749341125313,0.10989163,105600.0,105590.0,0.85296164]
[1749341125513,0.10969163,105600.0,105590.0,0.85296164]
[1749341125714,0.10989163,105600.0,105590.0,0.85296164]
[1749341126310,0.29917873,105600.0,105590.0,0.85296164]
[1749341128316,0.29897873,105600.0,105590.0,0.85296164]
[1749341129219,0.29917873,105600.0,105590.0,0.85296164]
[1749341130021,0.10989163,105600.0,105590.0,0.85296164]
[1749341130410,0.10989163,105600.0,105590.0,0.80867201]
[1749341132506,0.10028,105600.0,105590.0,0.80867201]
[1749341132711,0.10028,105600.0,105590.0,1.16947201]
[1749341133016,0.1194449,105600.0,105590.0,1.16947201]
[1749341134619,0.1194449,105600.0,105590.0,1.30246441]
[1749341135009,0.12910235,105600.0,105590.0,1.30246441]
[1749341135413,0.1194449,105600.0,105590.0,1.16947201]
[1749341136119,0.1192449,105600.0,105590.0,1.16947201]
[1749341136316,0.1194449,105600.0,105590.0,1.16947201]
[1749341138121,0.1194449,105600.0,105590.0,1.30246883]
[1749341138422,0.1290214,105600.0,105590.0,1.25818932]
[1749341138821,0.1194449,105600.0,105590.0,1.25818932]
[1749341141023,0.3085321,105600.0,105590.0,1.25818932]
[1749341141219,0.3087321,105600.0,105590.0,1.25818932]
[1749341142623,0.1194449,105600.0,105590.0,1.25818932]
[1749341142925,0.12873014,105600.0,105590.0,1.25818932]
[1749341143623,0.21793734,105600.0,105590.0,1.25818932]
[1749341144525,0.02865014,105600.0,105590.0,1.25818932]
[1749341145325,0.02865014,105600.0,105590.0,1.19904445]
[1749341147519,0.02865014,105600.0,105590.0,1.63108445]
[1749341152124,0.0193649,105600.0,105590.0,1.63108445]
[1749341152325,0.0191649,105600.0,105590.0,1.66070472]
[1749341152732,0.00752317,105600.0,105590.0,1.66070472]
[1749341173741,0.0002,105600.0,105590.0,1.66070472]
[1749341178944,0.0002,105600.0,105590.0,1.29990472]
[1749341179145,0.0002,105600.0,105590.0,1.66070472]
[1749341182554,0.76417992,105610.0,105600.0,0.1892863]
[1749341182850,0.71686092,105610.0,105600.0,0.62035405]
[1749341183150,0.74796092,105610.0,105600.0,0.62035405]
[1749341183350,0.70064192,105610.0,105600.0,0.62035405]
[1749341183651,0.70064192,105610.0,105600.0,1.05271405]
[1749341184047,0.70064192,105610.0,105600.0,1.05471405]
[1749341184448,0.65332442,105610.0,105600.0,1.05671405]
[1749341184748,0.65332442,105610.0,105600.0,0.62435405]
[1749341185052,0.65332442,105610.0,105600.0,0.68353333]
[1749341185253,0.65332442,105610.0,105600.0,0.62435405]
[1749341185648,0.65332442,105610.0,105600.0,0.68353378]
[1749341185855,0.65332442,105610.0,105600.0,0.65123378]
[1749341186247,1.18270842,105610.0,105600.0,0.37317973]
[1749341186446,1.27119142,105610.0,105600.0,0.31878]
[1749341186848,1.38916876,105610.0,105600.0,0.00878]
[1749341187049,1.27106958,105610.0,105600.0,0.00878]
[1749341190163,0.91026958,105610.0,105600.0,0.00878]
[1749341190462,1.63186958,105610.0,105600.0,0.00878]
[1749341192266,1.38186958,105610.0,105600.0,0.00878]
[1749341194466,1.19248558,105610.0,105600.0,0.00878]
[1749341194765,1.38186958,105610.0,105600.0,0.00878]
[1749341197468,1.19248558,105610.0,105600.0,0.00878]
[1749341200958,1.72452558,105610.0,105600.0,0.00878]
[1749341206279,1.72428558,105610.0,105600.0,0.00878]
[1749341206673,1.19248558,105610.0,105600.0,0.00878]
[1749341206875,1.72432558,105610.0,105600.0,0.00878]
[1749341208871,1.84230292,105610.0,105600.0,0.00878]
[1749341209976,1.72432558,105610.0,105600.0,0.00878]
[1749341212278,1.84230292,105610.0,105600.0,0.00878]
[1749341213179,1.75394176,105610.0,105600.0,0.00878]
[1749341214982,1.75394176,105610.0,105600.0,0.04048]
[1749341225481,1.75394176,105610.0,105600.0,0.00878]
[1749341225685,0.1892863,105600.0,105590.0,0.0936]
[1749341225876,0.79122545,105600.0,105590.0,0.2036]
[1749341226577,0.94122545,105600.0,105590.0,0.1403]
[1749341226780,0.97372545,105600.0,105590.0,0.0303]
[1749341226978,1.00333087,105600.0,105590.0,0.0303]
[1749341227384,0.1893042,105590.0,105580.0,0.10875428]
[1749341227585,1.17033647,105590.0,105580.0,0.49005428]
[1749341228182,1.17033647,105590.0,105580.0,0.44574177]
[1749341228380,1.17041647,105590.0,105580.0,0.44574177]
[1749341228586,0.63845647,105590.0,105580.0,0.44574177]
[1749341228782,0.63845647,105590.0,105580.0,0.49505428]
[1749341228984,1.17077647,105590.0,105580.0,0.49505428]
[1749341230089,1.17077647,105590.0,105580.0,0.49905428]
[1749341230891,1.53157647,105590.0,105580.0,0.49905428]
[1749341234491,1.53157647,105590.0,105580.0,0.14905428]
[1749341234691,1.53157647,105590.0,105580.0,0.24905428]
[1749341234886,1.4432242,105590.0,105580.0,0.24905428]
[1749341237596,1.4437042,105590.0,105580.0,0.24905428]
[1749341238788,1.4437442,105590.0,105580.0,0.24905428]
[1749341244401,0.7221442,105590.0,105580.0,0.24905428]
[1749341244701,1.0829442,105590.0,105580.0,0.24905428]
[1749341248200,1.0829442,105590.0,105580.0,0.18475428]
[1749341248401,1.1466442,105590.0,105580.0,0.18475428]
[1749341248901,1.23499647,105590.0,105580.0,0.18475428]
[1749341249699,1.1466442,105590.0,105580.0,0.18475428]
[1749341250599,1.1768442,105590.0,105580.0,0.18475428]
[1749341253704,1.26519647,105590.0,105580.0,0.18475428]
[1749341255205,1.26519647,105590.0,105580.0,0.24393401]
[1749341256700,1.26519647,105590.0,105580.0,0.18475428]
[1749341257999,1.60519647,105590.0,105580.0,0.05345428]
[1749341258195,1.69519647,105590.0,105580.0,0.00914177]
[1749341258401,1.60519647,105590.0,105580.0,0.00914177]
[1749341259001,1.63482154,105590.0,105580.0,0.00914177]
[1749341259202,1.72318869,105590.0,105580.0,0.00914177]
[1749341260009,1.72298869,105590.0,105580.0,0.00914177]
[1749341261104,1.60501135,105590.0,105580.0,0.00914177]
[1749341264414,1.96581135,105590.0,105580.0,0.00914177]
[1749341268521,2.07581135,105590.0,105580.0,0.00914177]
[1749341275617,2.07581135,105590.0,105580.0,0.00414177]
[1749341275830,2.07581135,105590.0,105580.0,0.00714177]
[1749341276030,2.07581135,105590.0,105580.0,0.00614177]
[1749341280031,2.07581135,105590.0,105580.0,0.03674177]
[1749341281633,2.10542154,105590.0,105580.0,0.03674177]
[1749341281833,1.99542154,105590.0,105580.0,0.03674177]
[1749341285634,2.09542154,105590.0,105580.0,0.03674177]
[1749341286435,2.10542154,105590.0,105580.0,0.03674177]
[1749341302246,2.07542154,105590.0,105580.0,0.03674177]
[1749341311355,2.50518154,105590.0,105580.0,0.03674177]
[1749341315252,0.1893214,105580.0,105570.0,0.07651251]
[1749341315560,1.07333699,105580.0,105570.0,0.18651251]
[1749341315956,1.07333699,105580.0,105570.0,0.21671251]
[1749341316353,1.07333699,105580.0,105570.0,0.22171251]
[1749341317058,1.00803699,105580.0,105570.0,0.22171251]
[1749341317654,1.44043699,105580.0,105570.0,0.22571251]
[1749341317855,0.68803699,105580.0,105570.0,0.22571251]
[1749341318054,1.19075699,105580.0,105570.0,0.22571251]
[1749341318452,1.19075699,105580.0,105570.0,0.25611251]
[1749341323463,1.19071699,105580.0,105570.0,0.25611251]
[1749341326662,1.55151699,105580.0,105570.0,0.25611251]
[1749341329154,1.88151699,105580.0,105570.0,0.25611251]
[1749341329355,1.55151699,105580.0,105570.0,0.25611251]
[1749341340365,1.62982879,105580.0,105570.0,0.25611251]
[1749341344266,1.66292879,105580.0,105570.0,0.25611251]
[1749341344570,0.94132879,105580.0,105570.0,0.25611251]
[1749341344766,1.66292879,105580.0,105570.0,0.25611251]
[1749341345668,2.10124059,105580.0,105570.0,0.16331251]
[1749341345870,2.27514059,105580.0,105570.0,0.16331251]
[1749341346060,2.16514059,105580.0,105570.0,0.16340248]
[1749341346266,2.35345239,105580.0,105570.0,0.05340248]
[1749341346567,2.27514059,105580.0,105570.0,0.05340248]
[1749341347373,2.27514059,105580.0,105570.0,0.05140248]
[1749341347765,2.27514059,105580.0,105570.0,0.04840248]
[1749341349370,2.27514059,105580.0,105570.0,0.004]
[1749341350968,2.27514059,105580.0,105570.0,0.04840248]
[1749341353673,2.27514059,105580.0,105570.0,0.004]
[1749341359968,2.27410059,105580.0,105570.0,0.004]
[1749341360168,1.74246059,105580.0,105570.0,0.004]
[1749341360463,2.27382059,105580.0,105570.0,0.0688]
[1749341361174,2.16382059,105580.0,105570.0,0.0688]
[1749341361571,2.00719699,105580.0,105570.0,0.0688]
[1749341361771,2.16382059,105580.0,105570.0,0.0688]
[1749341363574,1.11583699,105580.0,105570.0,0.0688]
[1749341363874,2.00886879,105580.0,105570.0,0.09000248]
[1749341364076,2.00886879,105580.0,105570.0,0.15250248]
[1749341368382,2.08718059,105580.0,105570.0,0.15250248]
[1749341369781,1.55566059,105580.0,105570.0,0.15250248]
[1749341370079,2.08758059,105580.0,105570.0,0.15250248]
[1749341371479,2.17758059,105580.0,105570.0,0.15250248]
[1749341372885,1.45598059,105580.0,105570.0,0.15250248]
[1749341373271,2.17758059,105580.0,105570.0,0.15250248]
[1749341377488,1.45598059,105580.0,105570.0,0.15250248]
[1749341377684,2.17758059,105580.0,105570.0,0.15250248]
[1749341379590,2.17758059,105580.0,105570.0,0.1524891]
[1749341381390,2.24178059,105580.0,105570.0,0.1524891]
[1749341383092,2.08515699,105580.0,105570.0,0.1524891]
[1749341383489,2.24178059,105580.0,105570.0,0.1524891]
[1749341386287,2.27358059,105580.0,105570.0,0.1524891]
[1749341386792,2.27358059,105580.0,105570.0,0.1081]
[1749341387796,2.27358059,105580.0,105570.0,0.0774]
[1749341388094,2.27358059,105580.0,105570.0,0.0456]
[1749341388898,2.27358059,105580.0,105570.0,0.0899891]
[1749341389490,2.11695699,105580.0,105570.0,0.0899891]
[1749341389695,2.27358059,105580.0,105570.0,0.0899891]
[1749341390797,1.55198059,105580.0,105570.0,0.0899891]
[1749341391096,2.27358059,105580.0,105570.0,0.0899891]
[1749341395002,2.27338059,105580.0,105570.0,0.0899891]
[1749341396301,1.55178059,105580.0,105570.0,0.0899891]
[1749341396503,2.27338059,105580.0,105570.0,0.0899891]
[1749341397298,1.55178059,105580.0,105570.0,0.0899891]
[1749341397499,2.27338059,105580.0,105570.0,0.0899891]
[1749341400206,2.27338059,105580.0,105570.0,0.0583891]
[1749341403100,2.35169239,105580.0,105570.0,0.0583891]
[1749341403498,2.27338059,105580.0,105570.0,0.0583891]
[1749341403704,2.2632642,105580.0,105570.0,0.014]
[1749341405109,2.38124154,105580.0,105570.0,0.014]
[1749341407115,2.2632642,105580.0,105570.0,0.014]
[1749341409010,1.5416642,105580.0,105570.0,0.014]
[1749341409313,2.38124154,105580.0,105570.0,0.014]
[1749341414214,1.65964154,105580.0,105570.0,0.014]
[1749341414420,2.38124154,105580.0,105570.0,0.014]
[1749341423525,2.2632642,105580.0,105570.0,0.014]
[1749341426224,2.38124154,105580.0,105570.0,0.014]
[1749341427326,1.65964154,105580.0,105570.0,0.014]
[1749341427726,2.38124154,105580.0,105570.0,0.014]
[1749341428329,2.2632642,105580.0,105570.0,0.014]
[1749341428528,2.38124154,105580.0,105570.0,0.014]
[1749341429627,2.30292974,105580.0,105570.0,0.014]
[1749341431132,2.30292974,105580.0,105570.0,0.1098]